fUSD/lending_fUSD_20240104
["ID","MTS","AMOUNT","RATE_DAILY","PERIOD"]
[310125062,1704376301148,-500.0,0.0003452,2]
[310125063,1704376301158,-500.0,0.0003452,2]
[310125064,1704376301168,-500.0,0.0003452,2]
[310125065,1704376301177,-516.6,0.0003452,2]
[310125066,1704376301187,-500.0,0.0003452,2]
[310125067,1704376301196,-500.0,0.0003452,2]
[310125068,1704376301206,-500.0,0.0003452,2]
[310125069,1704376301216,-500.0,0.0003452,2]
[310125070,1704376301226,-519.53,0.0003452,2]
[310125071,1704376301235,-500.0,0.0003452,2]
[310125072,1704376301245,-1518.1,0.0003452,2]
[310125073,1704376301256,-844.17,0.0003452,2]
[310125074,1704376301265,-500.0,0.0003452,2]
[310125075,1704376301276,-500.0,0.0003452,2]
[310125076,1704376301286,-500.0,0.0003452,2]
[310125077,1704376301296,-500.0,0.0003452,2]
[310125078,1704376301306,-1154.94,0.0003452,2]
[310125079,1704376301315,-500.0,0.0003452,2]
[310125080,1704376301325,-500.0,0.0003452,2]
[310125081,1704376301336,-500.0,0.0003452,2]
[310125082,1704376301347,-500.0,0.0003452,2]
[310125083,1704376301357,-275.17205877,0.0003452,2]
[310125084,1704376301366,-500.0,0.0003452,2]
[310125085,1704376301375,-500.0,0.0003452,2]
[310125086,1704376301385,-500.0,0.0003452,2]
[310125087,1704376301395,-577.84,0.0003452,2]
[310125088,1704376301404,-500.0,0.0003452,2]
[310125089,1704376301415,-685.93,0.0003452,2]
[310125090,1704376301425,-500.0,0.0003452,2]
[310125091,1704376301435,-500.0,0.0003452,2]
[310125092,1704376301445,-500.0,0.0003452,2]
[310125093,1704376301456,-500.0,0.0003452,2]
[310125094,1704376301468,-500.0,0.0003452,2]
[310125095,1704376301478,-500.0,0.0003452,2]
[310125096,1704376301488,-500.0,0.0003452,2]
[310125097,1704376301498,-500.0,0.0003452,2]
[310125098,1704376301508,-732.57,0.0003452,2]
[310125099,1704376301517,-500.0,0.0003452,2]
[310125100,1704376301528,-500.0,0.0003452,2]
[310125101,1704376301538,-500.0,0.0003452,2]
[310125102,1704376301549,-500.0,0.0003452,2]
[310125103,1704376301559,-790.13,0.0003452,2]
[310125104,1704376301569,-828.91,0.0003452,2]
[310125105,1704376301578,-500.0,0.0003452,2]
[310125106,1704376301587,-500.0,0.0003452,2]
[310125107,1704376301600,-500.0,0.0003452,2]
[310125108,1704376301610,-355.44990289,0.0003452,2]
[310125109,1704376301619,-500.0,0.0003452,2]
[310125110,1704376301629,-500.0,0.0003452,2]
[310125111,1704376301638,-711.96,0.0003452,2]
[310125112,1704376301648,-536.01,0.0003452,2]
[310125113,1704376301658,-500.0,0.0003452,2]
[310125114,1704376301667,-569.0154154,0.0003452,2]
[310125115,1704376301676,-500.0,0.0003452,2]
[310125116,1704376301685,-500.0,0.0003452,2]
[310125117,1704376301695,-500.0,0.0003452,2]
[310125118,1704376301707,-608.12,0.0003452,2]
[310125119,1704376301716,-588.69812523,0.0003452,2]
[310125120,1704376301728,-4986.82,0.0003452,2]
[310125121,1704376301737,-500.0,0.0003452,2]
[310125122,1704376301746,-866.33,0.0003452,2]
[310125123,1704376301758,-2106.08,0.0003452,2]
[310125124,1704376301766,-449.38775383,0.0003452,2]
[310125125,1704376301776,-500.0,0.0003452,2]
[310125126,1704376301786,-500.0,0.0003452,2]
[310125127,1704376301796,-500.0,0.0003452,2]
[310125128,1704376301806,-500.0,0.0003452,2]
[310125129,1704376301817,-2265.71,0.0003452,2]
[310125130,1704376301826,-500.0,0.0003452,2]
[310125131,1704376301836,-500.0,0.0003452,2]
[310125132,1704376301846,-767.02,0.0003452,2]
[310125133,1704376301856,-500.0,0.0003452,2]
[310125134,1704376301866,-211.8138501,0.0003452,2]
[310125135,1704376301875,-500.0,0.0003452,2]
[310125136,1704376301885,-1141.21,0.0003452,2]
[310125137,1704376301895,-500.0,0.0003452,2]
[310125138,1704376301904,-500.0,0.0003452,2]
[310125139,1704376301914,-500.0,0.0003452,2]
[310125140,1704376301924,-855.1,0.0003452,2]
[310125141,1704376301934,-616.17,0.0003452,2]
[310125142,1704376301944,-500.0,0.0003452,2]
[310125143,1704376301953,-500.0,0.0003452,2]
[310125144,1704376301963,-500.0,0.0003452,2]
[310125145,1704376301972,-500.0,0.0003452,2]
[310125146,1704376301982,-500.0,0.0003452,2]
[310125147,1704376301991,-500.0,0.0003452,2]
[310125148,1704376302000,-500.0,0.0003452,2]
[310125149,1704376302009,-500.0,0.0003452,2]
[310125150,1704376302019,-500.0,0.0003452,2]
[310125151,1704376302028,-1115.17,0.0003452,2]
[310125152,1704376302038,-500.0,0.0003452,2]
[310125153,1704376302047,-500.0,0.0003452,2]
[310125154,1704376302057,-500.0,0.0003452,2]
[310125155,1704376302067,-318.22943443,0.0003452,2]
[310125156,1704376302076,-500.0,0.0003452,2]
[310125157,1704376302085,-500.0,0.0003452,2]
[310125158,1704376302096,-3455.17,0.0003452,2]
[310125159,1704376302106,-500.0,0.0003452,2]
[310125160,1704376302115,-500.0,0.0003452,2]
[310125161,1704376302125,-500.0,0.0003452,2]
[310125162,1704376302134,-3050.39,0.0003452,2]
[310125163,1704376302144,-1355.05,0.0003452,2]
[310125164,1704376302153,-161.84030068,0.0003452,2]
[310125165,1704376302163,-926.09,0.0003452,2]
[310125166,1704376302172,-500.0,0.0003452,2]
[310125167,1704376302241,-3332.3,0.0003452,2]
[310125168,1704376302251,-500.0,0.0003452,2]
[310125169,1704376302261,-500.0,0.0003452,2]
[310125170,1704376302271,-500.0,0.0003452,2]
[310125171,1704376302281,-500.0,0.0003452,2]
[310125172,1704376302291,-622.83,0.0003452,2]
[310125173,1704376302301,-500.0,0.0003452,2]
[310125174,1704376302311,-2331.02,0.0003452,2]
[310125175,1704376302320,-500.0,0.0003452,2]
[310125176,1704376302330,-660.0,0.0003452,2]
[310125177,1704376302339,-500.0,0.0003452,2]
[310125178,1704376302349,-500.0,0.0003452,2]
[310125179,1704376302358,-500.0,0.0003452,2]
[310125180,1704376302368,-500.0,0.0003452,2]
[310125181,1704376302378,-500.0,0.0003452,2]
[310125182,1704376302387,-661.88,0.0003452,2]
[310125183,1704376302397,-500.0,0.0003452,2]
[310125184,1704376302406,-500.0,0.0003452,2]
[310125185,1704376302415,-2608.4,0.0003452,2]
[310125186,1704376302424,-500.0,0.0003452,2]
[310125187,1704376302433,-1494.03,0.0003452,2]
[310125188,1704376302442,-1463.43,0.0003452,2]
[310125189,1704376302452,-500.0,0.0003452,2]
[310125190,1704376302464,-1043.9,0.0003452,2]
[310125191,1704376302473,-598.95,0.0003452,2]
[310125192,1704376302482,-1024.71,0.0003452,2]
[310125193,1704376302492,-500.0,0.0003452,2]
[310125194,1704376302501,-500.0,0.0003452,2]
[310125195,1704376302511,-500.0,0.0003452,2]
[310125196,1704376302520,-500.0,0.0003452,2]
[310125197,1704376302530,-609.43,0.0003452,2]
[310125198,1704376302540,-1321.13,0.0003452,2]
[310125199,1704376302550,-1809.81,0.0003452,2]
[310125200,1704376302559,-741.24,0.0003452,2]
[310125201,1704376302568,-955.44,0.0003452,2]
[310125202,1704376302578,-1179.95,0.0003452,2]
[310125203,1704376302586,-568.4,0.0003452,2]
[310125204,1704376302596,-824.39,0.0003452,2]
[310125205,1704376302605,-896.64,0.0003452,2]
[310125206,1704376302614,-500.0,0.0003452,2]
[310125207,1704376302624,-745.04,0.0003452,2]
[310125208,1704376302634,-673.43,0.0003452,2]
[310125209,1704376302643,-780.4,0.0003452,2]
[310125210,1704376302652,-537.65,0.0003452,2]
[310125211,1704376302662,-1236.0,0.0003452,2]
[310125212,1704376302671,-500.0,0.0003452,2]
[310125213,1704376302681,-642.93,0.0003452,2]
[310125214,1704376302690,-837.04,0.0003452,2]
[310125215,1704376302700,-1050.16,0.0003452,2]
[310125216,1704376302709,-500.0,0.0003452,2]
[310125217,1704376302718,-500.0,0.0003452,2]
[310125218,1704376302727,-500.0,0.0003452,2]
[310125219,1704376302737,-325.48616792,0.0003452,2]
[310125220,1704376302747,-969.09,0.0003452,2]
[310125221,1704376302757,-500.0,0.0003452,2]
[310125222,1704376302766,-626.59,0.0003452,2]
[310125223,1704376302775,-532.7,0.0003452,2]
[310125224,1704376302785,-500.0,0.0003452,2]
[310125225,1704376302794,-517.15,0.0003452,2]
[310125226,1704376302803,-976.99,0.0003452,2]
[310125227,1704376302816,-833.15,0.0003452,2]
[310125228,1704376302826,-568.19025104,0.0003452,2]
[310125229,1704376302835,-500.0,0.0003452,2]
[310125230,1704376302846,-500.0,0.0003452,2]
[310125231,1704376302855,-517.44,0.0003452,2]
[310125232,1704376302864,-500.0,0.0003452,2]
[310125233,1704376302873,-588.23,0.0003452,2]
[310125234,1704376302882,-2663.85,0.0003452,2]
[310125235,1704376302892,-524.48,0.0003452,2]
[310125236,1704376302901,-762.82,0.0003452,2]
[310125237,1704376302911,-3366.34,0.0003452,2]
[310125238,1704376302921,-516.2,0.0003452,2]
[310125239,1704376302931,-7010.51,0.0003452,2]
[310125240,1704376302940,-643.07676074,0.0003452,2]
[310125241,1704376302950,-500.0,0.0003452,2]
[310125242,1704376302960,-500.0,0.0003452,2]
[310125243,1704376302969,-500.0,0.0003452,2]
[310125244,1704376302978,-864.34,0.0003452,2]
[310125245,1704376302989,-500.0,0.0003452,2]
[310125246,1704376302999,-500.0,0.0003452,2]
[310125247,1704376303008,-10000.0,0.00034521,2]
[310125248,1704376303018,-5000.0,0.00034535,2]
[310125249,1704376303027,-5000.0,0.00034535,2]
[310125250,1704376303037,-2936.39,0.00034535,2]
[310125251,1704376303047,-5000.0,0.00034553,2]
[310125252,1704376303057,-5000.0,0.00034553,2]
[310125253,1704376303066,-3969.39,0.0003457,2]
[310125254,1704376303075,-5000.0,0.0003457,2]
[310125255,1704376303085,-5000.0,0.00034588,2]
[310125256,1704376303097,-223.40104,0.00034598,2]
[310125257,1704376303107,-150.0,0.00034599,2]
[310125258,1704376303116,-10033.75,0.000346,2]
[310125259,1704376303126,-10033.75,0.000346,2]
[310125260,1704376303135,-10033.75,0.000346,2]
[310125261,1704376303144,-10033.75,0.000346,2]
[310125262,1704376303155,-10033.75,0.000346,2]
[310125263,1704376303164,-10033.75,0.000346,2]
[310125264,1704376303174,-10033.75,0.000346,2]
[310125265,1704376303184,-10033.75,0.000346,2]
[310125266,1704376303193,-10033.75,0.000346,2]
[310125267,1704376303202,-10033.75,0.000346,2]
[310125268,1704376303211,-10033.75,0.000346,2]
[310125269,1704376303220,-10033.75,0.000346,2]
[310125270,1704376303230,-10033.75,0.000346,2]
[310125271,1704376303239,-10033.75,0.000346,2]
[310125272,1704376303249,-10033.75,0.000346,2]
[310125273,1704376303259,-10033.75,0.000346,2]
[310125274,1704376303270,-10033.75,0.000346,2]
[310125275,1704376303279,-10033.75,0.000346,2]
[310125276,1704376303289,-10033.75,0.000346,2]
[310125277,1704376303299,-10033.75,0.000346,2]
[310125278,1704376303308,-5000.0,0.00034605,2]
[310125279,1704376303318,-5000.0,0.00034622,2]
[310125280,1704376303328,-337.13765,0.00034636,2]
[310125281,1704376303337,-456.180966,0.00034636,2]
[310125282,1704376303350,-5000.0,0.0003464,2]
[310125283,1704376303360,-89693.61647517,0.0003465,2]
[310125284,1704376303369,-5000.0,0.00034658,2]
[310125285,1704376303378,-180.0,0.00034658,2]
[310125286,1704376303388,-151.0,0.00034659,30]
[310125287,1704376303397,-151.69064531,0.00034666,2]
[310125288,1704376303407,-5000.0,0.00034675,2]
[310125289,1704376303416,-5000.0,0.00034693,2]
[310125290,1704376303425,-157.40104,0.00034698,2]
[310125291,1704376303434,-338.94941078,0.000347,4]
[310125292,1704376303444,-50571.42,0.000347,2]
[310125293,1704376303454,-5000.0,0.0003471,2]
[310125294,1704376303465,-462.56,0.00034726,2]
[310125295,1704376303474,-5000.0,0.00034727,2]
[310125296,1704376303483,-2922.09,0.00034735,7]
[310125297,1704376303493,-2922.09,0.00034735,7]
[310125298,1704376303503,-2922.09,0.00034735,7]
[310125299,1704376303512,-2922.09,0.00034735,7]
[310125300,1704376303521,-5000.0,0.00034745,2]
[310125301,1704376303531,-206.0,0.0003478,2]
[310125302,1704376303541,-500.0,0.00034784,2]
[310125303,1704376303550,-32288.727076,0.00034794,2]
[310125304,1704376303561,-4754.540071,0.00034794,2]
[310125305,1704376303570,-2194.069593,0.00034794,2]
[310125306,1704376303580,-500.0,0.00034794,2]
[310125307,1704376303589,-500.0,0.00034794,2]
[310125308,1704376303599,-500.0,0.00034794,2]
[310125309,1704376303609,-500.0,0.00034794,2]
[310125310,1704376303618,-500.0,0.00034794,2]
[310125311,1704376303627,-550.1,0.00034794,2]
[310125312,1704376303637,-500.0,0.00034794,2]
[310125313,1704376303646,-500.0,0.00034794,2]
[310125314,1704376303655,-500.0,0.00034794,2]
[310125315,1704376303664,-500.0,0.00034794,2]
[310125316,1704376303673,-500.0,0.00034794,2]
[310125317,1704376303683,-500.0,0.00034794,2]
[310125318,1704376303692,-641.75,0.00034794,2]
[310125319,1704376303704,-500.0,0.00034794,2]
[310125320,1704376303715,-688.97,0.00034794,2]
[310125321,1704376303724,-755.75,0.00034794,2]
[310125322,1704376303733,-500.0,0.00034794,2]
[310125323,1704376303742,-1506.91,0.00034794,2]
[310125324,1704376303753,-500.0,0.00034794,2]
[310125325,1704376303763,-500.0,0.00034794,2]
[310125326,1704376303773,-569.93079794,0.00034794,2]
[310125327,1704376303782,-500.0,0.00034794,2]
[310125328,1704376303791,-872.68,0.00034794,2]
[310125329,1704376303801,-500.0,0.00034794,2]
[310125330,1704376303810,-1266.42,0.00034794,2]
[310125331,1704376303819,-269.83289134,0.00034794,2]
[310125332,1704376303829,-403.65785722,0.00034794,2]
[310125333,1704376303837,-500.0,0.00034794,2]
[310125334,1704376303848,-500.0,0.00034794,2]
[310125335,1704376303858,-500.0,0.00034794,2]
[310125336,1704376303867,-500.0,0.00034794,2]
[310125337,1704376303876,-1122.66,0.00034794,2]
[310125338,1704376303885,-500.0,0.00034794,2]
[310125339,1704376303895,-500.0,0.00034794,2]
[310125340,1704376303905,-500.0,0.00034794,2]
[310125341,1704376303914,-500.0,0.00034794,2]
[310125342,1704376303923,-683.22,0.00034794,2]
[310125343,1704376303934,-500.0,0.00034794,2]
[310125344,1704376303943,-500.0,0.00034794,2]
[310125345,1704376303952,-500.0,0.00034794,2]
[310125346,1704376303962,-559.7,0.00034794,2]
[310125347,1704376303971,-500.0,0.00034794,2]
[310125348,1704376303980,-500.0,0.00034794,2]
[310125349,1704376303990,-500.0,0.00034794,2]
[310125350,1704376303999,-500.0,0.00034794,2]
[310125351,1704376304008,-500.0,0.00034794,2]
[310125352,1704376304018,-500.0,0.00034794,2]
[310125353,1704376304027,-500.0,0.00034794,2]
[310125354,1704376304037,-1749.13,0.00034794,2]
[310125355,1704376304046,-500.0,0.00034794,2]
[310125356,1704376304056,-576.50313684,0.00034794,2]
[310125357,1704376304066,-503.48,0.00034794,2]
[310125358,1704376304075,-500.0,0.00034794,2]
[310125359,1704376304085,-500.0,0.00034794,2]
[310125360,1704376304095,-500.0,0.00034794,2]
[310125361,1704376304105,-500.0,0.00034794,2]
[310125362,1704376304115,-500.0,0.00034794,2]
[310125363,1704376304124,-500.0,0.00034794,2]
[310125364,1704376304133,-500.0,0.00034794,2]
[310125365,1704376304144,-500.0,0.00034794,2]
[310125366,1704376304154,-610.75127264,0.00034794,2]
[310125367,1704376304163,-562.25,0.00034794,2]
[310125368,1704376304172,-500.0,0.00034794,2]
[310125369,1704376304181,-500.0,0.00034794,2]
[310125370,1704376304191,-500.0,0.00034794,2]
[310125371,1704376304200,-500.0,0.00034794,2]
[310125372,1704376304209,-500.0,0.00034794,2]
[310125373,1704376304218,-868.86,0.00034794,2]
[310125374,1704376304227,-500.0,0.00034794,2]
[310125375,1704376304236,-500.0,0.00034794,2]
[310125376,1704376304246,-500.0,0.00034794,2]
[310125377,1704376304255,-500.0,0.00034794,2]
[310125378,1704376304265,-500.0,0.00034794,2]
[310125379,1704376304274,-500.0,0.00034794,2]
[310125380,1704376304284,-500.0,0.00034794,2]
[310125381,1704376304293,-1000.0,0.00034794,2]
[310125382,1704376304303,-528.23,0.00034794,2]
[310125383,1704376304312,-689.08,0.00034794,2]
[310125384,1704376304322,-500.0,0.00034794,2]
[310125385,1704376304331,-500.0,0.00034794,2]
[310125386,1704376304343,-500.0,0.00034794,2]
[310125387,1704376304352,-500.0,0.00034794,2]
[310125388,1704376304361,-819.39,0.00034794,2]
[310125389,1704376304371,-500.0,0.00034794,2]
[310125390,1704376304381,-501.43,0.00034794,2]
[310125391,1704376304390,-500.0,0.00034794,2]
[310125392,1704376304400,-500.0,0.00034794,2]
[310125393,1704376304410,-500.0,0.00034794,2]
[310125394,1704376304420,-500.0,0.00034794,2]
[310125395,1704376304430,-500.0,0.00034794,2]
[310125396,1704376304439,-659.39,0.00034794,2]
[310125397,1704376304449,-500.0,0.00034794,2]
[310125398,1704376304459,-500.0,0.00034794,2]
[310125399,1704376304469,-500.0,0.00034794,2]
[310125400,1704376304479,-500.0,0.00034794,2]
[310125401,1704376304489,-500.0,0.00034794,2]
[310125402,1704376304499,-500.0,0.00034794,2]
[310125403,1704376304508,-500.0,0.00034794,2]
[310125404,1704376304520,-324.08548362,0.00034794,2]
[310125405,1704376304530,-500.0,0.00034794,2]
[310125406,1704376304540,-500.0,0.00034794,2]
[310125407,1704376304550,-500.0,0.00034794,2]
[310125408,1704376304559,-500.0,0.00034794,2]
[310125409,1704376304569,-500.0,0.00034794,2]
[310125410,1704376304579,-500.0,0.00034794,2]
[310125411,1704376304589,-500.0,0.00034794,2]
[310125412,1704376304600,-534.72983167,0.00034794,2]
[310125413,1704376304609,-2553.32,0.00034794,2]
[310125414,1704376304619,-500.0,0.00034794,2]
[310125415,1704376304628,-500.0,0.00034794,2]
[310125416,1704376304638,-604.64,0.00034794,2]
[310125417,1704376304647,-500.0,0.00034794,2]
[310125418,1704376304656,-500.0,0.00034794,2]
[310125419,1704376304666,-584.06,0.00034794,2]
[310125420,1704376304676,-681.98,0.00034794,2]
[310125421,1704376304685,-564.27,0.00034794,2]
[310125422,1704376304695,-500.0,0.00034794,2]
[310125423,1704376304705,-230.71939464,0.00034794,2]
[310125424,1704376304714,-500.0,0.00034794,2]
[310125425,1704376304724,-500.0,0.00034794,2]
[310125426,1704376304733,-500.0,0.00034794,2]
[310125427,1704376304742,-500.0,0.00034794,2]
[310125428,1704376304752,-500.0,0.00034794,2]
[310125429,1704376304761,-500.0,0.00034794,2]
[310125430,1704376304770,-500.0,0.00034794,2]
[310125431,1704376304780,-817.16,0.00034794,2]
[310125432,1704376304790,-500.0,0.00034794,2]
[310125433,1704376304799,-3601.75,0.00034794,2]
[310125434,1704376304809,-500.0,0.00034794,2]
[310125435,1704376304819,-500.0,0.00034794,2]
[310125436,1704376304829,-500.0,0.00034794,2]
[310125437,1704376304838,-500.0,0.00034794,2]
[310125438,1704376304850,-500.0,0.00034794,2]
[310125439,1704376304859,-215.12203033,0.00034794,2]
[310125440,1704376304869,-500.0,0.00034794,2]
[310125441,1704376304879,-500.0,0.00034794,2]
[310125442,1704376304888,-500.0,0.00034794,2]
[310125443,1704376304898,-500.0,0.00034794,2]
[310125444,1704376304907,-500.0,0.00034794,2]
[310125445,1704376304915,-500.0,0.00034794,2]
[310125446,1704376304925,-717.82,0.00034794,2]
[310125447,1704376304935,-500.0,0.00034794,2]
[310125448,1704376304944,-669.95,0.00034794,2]
[310125449,1704376304955,-500.0,0.00034794,2]
[310125450,1704376304965,-500.0,0.00034794,2]
[310125451,1704376304974,-500.0,0.00034794,2]
[310125452,1704376304983,-500.0,0.00034794,2]
[310125453,1704376304993,-263.26699916,0.00034794,2]
[310125454,1704376305003,-196.52056733,0.00034794,2]
[310125455,1704376305012,-500.0,0.00034794,2]
[310125456,1704376305022,-591.79,0.00034794,2]
[310125457,1704376305031,-500.0,0.00034794,2]
[310125458,1704376305041,-500.0,0.00034794,2]
[310125459,1704376305050,-500.0,0.00034794,2]
[310125460,1704376305060,-406.48,0.00034794,2]
[310125461,1704376305069,-500.0,0.00034794,2]
[310125462,1704376305078,-500.0,0.00034794,2]
[310125463,1704376305088,-500.0,0.00034794,2]
[310125464,1704376305100,-500.0,0.00034794,2]
[310125465,1704376305112,-500.0,0.00034794,2]
[310125466,1704376305121,-1654.56,0.00034794,2]
[310125467,1704376305130,-500.0,0.00034794,2]
[310125468,1704376305140,-500.0,0.00034794,2]
[310125469,1704376305149,-500.0,0.00034794,2]
[310125470,1704376305158,-500.0,0.00034794,2]
[310125471,1704376305169,-500.0,0.00034794,2]
[310125472,1704376305178,-538.43581386,0.00034794,2]
[310125473,1704376305188,-516.6,0.00034794,2]
[310125474,1704376305198,-500.0,0.00034794,2]
[310125475,1704376305207,-500.0,0.00034794,2]
[310125476,1704376305217,-500.0,0.00034794,2]
[310125477,1704376305226,-524.01137671,0.00034794,2]
[310125478,1704376305236,-519.53,0.00034794,2]
[310125479,1704376305246,-500.0,0.00034794,2]
[310125480,1704376305255,-1518.1,0.00034794,2]
[310125481,1704376305264,-844.17,0.00034794,2]
[310125482,1704376305274,-500.0,0.00034794,2]
[310125483,1704376305283,-500.0,0.00034794,2]
[310125484,1704376305293,-500.0,0.00034794,2]
[310125485,1704376305303,-602.20521422,0.00034794,2]
[310125486,1704376305312,-1154.94,0.00034794,2]
[310125487,1704376305322,-500.0,0.00034794,2]
[310125488,1704376305331,-500.0,0.00034794,2]
[310125489,1704376305341,-500.0,0.00034794,2]
[310125490,1704376305352,-500.0,0.00034794,2]
[310125491,1704376305362,-500.0,0.00034794,2]
[310125492,1704376305372,-500.0,0.00034794,2]
[310125493,1704376305381,-500.0,0.00034794,2]
[310125494,1704376305391,-500.0,0.00034794,2]
[310125495,1704376305401,-685.93,0.00034794,2]
[310125496,1704376305411,-500.0,0.00034794,2]
[310125497,1704376305421,-500.0,0.00034794,2]
[310125498,1704376305431,-500.0,0.00034794,2]
[310125499,1704376305441,-500.0,0.00034794,2]
[310125500,1704376305451,-500.0,0.00034794,2]
[310125501,1704376305463,-500.0,0.00034794,2]
[310125502,1704376305473,-500.0,0.00034794,2]
[310125503,1704376305484,-500.0,0.00034794,2]
[310125504,1704376305494,-732.57,0.00034794,2]
[310125505,1704376305504,-523.84776815,0.00034794,2]
[310125506,1704376305514,-166.30432969,0.00034794,2]
[310125507,1704376305524,-500.0,0.00034794,2]
[310125508,1704376305534,-500.0,0.00034794,2]
[310125509,1704376305544,-790.13,0.00034794,2]
[310125510,1704376305554,-828.91,0.00034794,2]
[310125511,1704376305564,-500.0,0.00034794,2]
[310125512,1704376305574,-500.0,0.00034794,2]
[310125513,1704376305585,-500.0,0.00034794,2]
[310125514,1704376305596,-500.0,0.00034794,2]
[310125515,1704376305607,-500.0,0.00034794,2]
[310125516,1704376305617,-711.96,0.00034794,2]
[310125517,1704376305626,-536.01,0.00034794,2]
[310125518,1704376305635,-500.0,0.00034794,2]
[310125519,1704376305645,-500.0,0.00034794,2]
[310125520,1704376305656,-500.0,0.00034794,2]
[310125521,1704376305666,-424.13268541,0.00034794,2]
[310125522,1704376305677,-608.12,0.00034794,2]
[310125523,1704376305687,-4986.82,0.00034794,2]
[310125524,1704376305698,-500.0,0.00034794,2]
[310125525,1704376305708,-866.33,0.00034794,2]
[310125526,1704376305721,-2106.08,0.00034794,2]
[310125527,1704376305730,-200.08719023,0.00034794,2]
[310125528,1704376305740,-500.0,0.00034794,2]
[310125529,1704376305750,-500.0,0.00034794,2]
[310125530,1704376305759,-500.0,0.00034794,2]
[310125531,1704376305770,-2265.71,0.00034794,2]
[310125532,1704376305779,-500.0,0.00034794,2]
[310125533,1704376305789,-500.0,0.00034794,2]
[310125534,1704376305802,-767.02,0.00034794,2]
[310125535,1704376305812,-500.0,0.00034794,2]
[310125536,1704376305822,-500.0,0.00034794,2]
[310125537,1704376305833,-1141.21,0.00034794,2]
[310125538,1704376305844,-500.0,0.00034794,2]
[310125539,1704376305853,-500.0,0.00034794,2]
[310125540,1704376305863,-500.0,0.00034794,2]
[310125541,1704376305874,-855.1,0.00034794,2]
[310125542,1704376305884,-616.17,0.00034794,2]
[310125543,1704376305894,-500.0,0.00034794,2]
[310125544,1704376305903,-500.0,0.00034794,2]
[310125545,1704376305912,-500.0,0.00034794,2]
[310125546,1704376305923,-500.0,0.00034794,2]
[310125547,1704376305933,-500.0,0.00034794,2]
[310125548,1704376305943,-500.0,0.00034794,2]
[310125549,1704376305953,-500.0,0.00034794,2]
[310125550,1704376305963,-506.529998,0.00034794,2]
[310125551,1704376305972,-500.0,0.00034794,2]
[310125552,1704376305982,-1115.17,0.00034794,2]
[310125553,1704376305992,-500.0,0.00034794,2]
[310125554,1704376306002,-500.0,0.00034794,2]
[310125555,1704376306012,-500.0,0.00034794,2]
[310125556,1704376306022,-227.948468,0.00034794,2]
[310125557,1704376306032,-500.0,0.00034794,2]
[310125558,1704376306042,-3455.17,0.00034794,2]
[310125559,1704376306052,-500.0,0.00034794,2]
[310125560,1704376306063,-500.0,0.00034794,2]
[310125561,1704376306073,-614.3329829,0.00034794,2]